bitfinex/quotes_ETHUSD_20250129
["timestamp","ask_amount","ask_price","bid_price","bid_amount"]
[1738158402238,0.8021,3108.0,3107.6,3.77538]
[1738158402665,4.01966,3108.0,3107.6,0.5575]
[1738158402884,3.2176,3107.9,3107.5,0.5575]
[1738158403139,0.8211,3107.8,3107.5,0.5575]
[1738158404178,0.8211,3107.8,3107.2,3.22576]
[1738158404179,4.03882,3107.8,3107.3,6.7757]
[1738158404378,4.03882,3107.8,3107.3,4.633216]
[1738158404379,7.2566,3107.8,3107.3,4.633216]
[1738158404684,0.8211,3107.8,3107.5,0.5575]
[1738158404981,0.8211,3107.8,3107.3,4.633216]
[1738158404982,0.8211,3107.8,3107.3,1.075716]
[1738158405196,0.8211,3107.8,3107.2,3.21826]
[1738158405341,0.8211,3107.8,3107.4,0.0075]
[1738158405683,7.358914,3108.1,3107.5,3.218]
[1738158405857,3.21751,3108.0,3107.5,3.218]
[1738158408201,3.21751,3108.0,3107.5,0.55]
[1738158408694,3.21763,3107.9,3107.5,0.55]
[1738158409099,3.21795,3107.6,3107.0,3.21844]
[1738158409304,0.7854,3107.7,3107.2,3.2183]
[1738158409652,4.00329,3107.7,3107.2,3.2183]
[1738158410268,3.21794,3107.6,3107.2,0.5575]
[1738158410473,0.159194,3108.1,3107.6,0.7584]
[1738158410791,0.159194,3108.1,3108.0,3.7675]
[1738158410972,0.159194,3108.1,3108.0,3.80717059]
[1738158411148,0.159194,3108.1,3108.0,3.83874082]
[1738158412170,0.159194,3108.1,3108.0,3.80657023]
[1738158412470,0.159194,3108.1,3108.0,4.80050567]
[1738158412697,0.159194,3108.1,3108.0,4.83267626]
[1738158417574,0.159194,3108.1,3108.0,1.58300567]
[1738158417859,0.159194,3108.1,3108.0,3.80657023]
[1738158418199,0.159194,3108.1,3108.0,0.58907023]
[1738158418436,0.916994,3108.1,3108.0,0.03157023]
[1738158418670,7.134384,3108.1,3108.0,2.3e-07]
[1738158418801,7.134384,3108.1,3108.0,4.53e-06]
[1738158419002,3.21882,3106.8,3106.2,0.8205]
[1738158419304,3.21892,3106.7,3106.3,0.06020945]
[1738158419555,3.21882,3106.8,3106.3,0.06020945]
[1738158419556,3.21896,3106.6,3106.3,0.06020945]
[1738158419723,3.21896,3106.6,3106.2,3.0]
[1738158419923,3.21896,3106.6,3106.3,0.07024436]
[1738158420548,3.21896,3106.6,3106.1,0.5575]
[1738158420750,3.21896,3106.6,3106.4,0.03872531]
[1738158420909,3.21896,3106.6,3106.1,0.0075]
[1738158421247,3.21896,3106.6,3106.5,0.03862902]
[1738158421450,3.21879,3106.8,3106.1,3.22695]
[1738158421749,3.21879,3106.8,3106.3,0.0075]
[1738158422207,3.21879,3106.8,3106.4,0.03872721]
[1738158422549,3.21886,3106.7,3106.4,0.03872721]
[1738158422757,3.21905,3106.5,3106.4,0.03872721]
[1738158422905,3.99436924,3106.5,3106.0,3.0]
[1738158423110,0.7513,3106.5,3106.1,0.05032762]
[1738158423346,0.7513,3106.5,3106.1,0.60032762]
[1738158425320,3.21917,3106.4,3106.1,0.60032762]
[1738158426005,3.21936,3106.2,3106.1,0.04282762]
[1738158426252,3.21936,3106.2,3105.6,4.05663]
[1738158426253,3.97764,3106.1,3105.4,6.44025]
[1738158426412,3.97764,3106.1,3105.5,3.0]
[1738158426610,3.24364924,3106.0,3105.5,3.0]
[1738158426810,0.7581,3106.1,3105.4,3.0]
[1738158427164,3.21987,3105.8,3105.1,3.22044]
[1738158427330,3.22001,3105.6,3105.1,3.22044]
[1738158427857,3.22001,3105.6,3105.2,0.5575]
[1738158428357,3.22001,3105.6,3105.2,0.0075]
[1738158428913,3.22009,3105.5,3104.9,5.7697]
[1738158429159,3.22023,3105.4,3104.9,2.549]
[1738158429860,3.22001,3105.6,3105.0,0.5575]
[1738158429861,6.44008,3105.6,3105.0,0.5575]
[1738158430357,3.22001,3105.6,3105.0,3.77807]
[1738158430661,3.22011,3105.5,3105.0,0.5575]
[1738158431033,3.22001,3105.6,3105.0,0.5575]
[1738158431532,3.22009,3105.5,3105.0,0.5575]
[1738158432530,3.22005,3105.6,3105.0,0.5575]
[1738158432751,3.22012,3105.5,3105.0,0.5575]
[1738158432928,3.2203,3105.3,3104.8,0.5575]
[1738158433129,3.97391,3105.1,3104.8,0.5575]
[1738158433330,3.97391,3105.1,3104.5,3.22107]
[1738158433331,3.22066,3105.0,3104.5,3.0]
[1738158433873,0.7534,3105.1,3104.5,0.0075]
[1738158434072,0.7534,3105.1,3104.5,3.77852]
[1738158434226,0.7534,3105.1,3104.6,3.0]
[1738158434227,3.97391,3105.1,3104.6,3.0]
[1738158434865,0.7534,3105.1,3104.7,0.5575]
[1738158435092,0.7658,3105.3,3104.9,3.22069]
[1738158435369,3.98611,3105.3,3104.8,0.5575]
[1738158435519,0.7658,3105.3,3104.8,3.77829]
[1738158435715,0.7658,3105.3,3104.9,3.22071]
[1738158436722,0.7658,3105.3,3104.8,3.77827]
[1738158437464,0.78981924,3105.3,3104.8,0.5575]
[1738158437664,3.22041,3105.2,3104.8,0.5575]
[1738158438137,3.24442924,3105.2,3104.8,0.5575]
[1738158438465,3.24442924,3105.2,3104.6,3.0]
[1738158438675,3.2206,3105.1,3104.6,3.0]
[1738158438816,3.22068,3105.0,3104.3,3.22132]
[1738158439020,3.22095,3104.7,3104.1,6.44302]
[1738158439270,3.22104,3104.6,3104.1,3.22151]
[1738158439922,0.8289,3104.5,3104.1,3.22151]
[1738158440121,0.8289,3104.5,3104.1,0.5575]
[1738158440322,4.07405924,3104.5,3104.1,0.5575]
[1738158440770,3.2213,3104.4,3104.2,0.03261202]
[1738158441067,3.22151,3104.2,3103.6,3.22204]
[1738158441276,0.02401924,3104.1,3103.6,3.22204]
[1738158441422,0.809,3104.0,3103.6,3.22204]
[1738158441862,0.809,3104.0,3103.7,0.55]
[1738158442268,4.03071,3104.0,3103.6,3.0]
[1738158442429,4.03066,3104.0,3103.6,3.0]
[1738158442764,3.22177,3103.9,3103.4,5.77225]
[1738158442970,3.22177,3103.9,3103.4,2.55]
[1738158443211,3.24588924,3103.8,3103.4,2.55]
[1738158443962,3.22177,3103.9,3103.4,5.77224]
[1738158444326,3.22177,3103.9,3103.4,2.55]
[1738158444595,0.02401924,3103.8,3103.4,2.55]
[1738158444751,3.24594924,3103.8,3103.4,2.55]
[1738158444954,3.22197,3103.7,3103.4,2.55]
[1738158445552,3.22136,3104.3,3102.8,3.8287]
[1738158445553,0.8169,3103.5,3102.8,0.8287]
[1738158445899,3.22243,3103.3,3102.8,3.22282]
[1738158446102,3.22253,3103.2,3102.7,0.0075]
[1738158446257,4.00586,3103.0,3102.4,3.22327]
[1738158446462,3.24688924,3102.9,3102.2,3.231]
[1738158446673,3.22287,3102.9,3102.3,3.0]
[1738158446883,0.8182,3102.6,3102.1,3.22358]
[1738158447411,4.04131,3102.6,3102.0,3.22368]
[1738158447573,4.04131,3102.6,3102.1,3.22361]
[1738158447574,0.8182,3102.6,3102.1,3.22361]
[1738158447763,0.8182,3102.6,3101.8,0.372]
[1738158447764,0.8047,3102.9,3102.4,3.22324]
[1738158448183,0.8047,3102.9,3102.4,3.22323]
[1738158448498,0.02401924,3102.8,3102.3,0.5575]
[1738158448697,3.22292,3102.8,3102.3,0.55]
[1738158448884,0.02401924,3102.7,3102.3,0.55]
[1738158449401,0.8047,3102.9,3102.3,3.7734]
[1738158449800,0.8047,3102.9,3102.4,3.22328]
[1738158450365,4.02752,3102.9,3102.3,0.55]
[1738158450622,3.22297,3102.8,3102.3,0.55]
[1738158451109,0.82871924,3102.9,3102.3,0.55]
[1738158451110,4.05156924,3102.9,3102.3,0.55]
[1738158453607,3.24702924,3102.7,3102.1,3.0]
[1738158453965,3.24702924,3102.7,3102.2,0.55]
[1738158454213,4.02781,3102.6,3102.2,0.55]
[1738158454630,3.22331,3102.4,3102.0,3.0]
[1738158454835,3.22331,3102.4,3101.7,3.22401]
[1738158455140,3.22355,3102.2,3101.5,5.77619]
[1738158455336,0.8047,3102.3,3101.8,3.22393]
[1738158456037,4.02813,3102.3,3101.9,0.03584055]
[1738158456528,4.05214924,3102.3,3101.7,3.22395]
[1738158456737,3.22354,3102.2,3102.0,0.03578981]
[1738158456889,3.22354,3102.2,3101.5,5.77621]
[1738158457087,3.22363,3102.1,3101.8,0.03589129]
[1738158457305,3.22363,3102.1,3101.6,3.22407]
[1738158457498,0.8047,3102.3,3101.9,0.03584055]
[1738158457703,0.8047,3102.3,3101.8,3.22388]
[1738158457922,0.8047,3102.3,3102.0,0.03578981]
[1738158458121,0.8047,3102.3,3101.8,3.22388]
[1738158458331,3.22314,3102.6,3102.1,3.22361]
[1738158458558,3.22294,3102.8,3102.2,3.80918835]
[1738158458559,0.8258,3102.7,3102.2,3.80918835]
[1738158458901,0.8258,3102.7,3102.2,0.03568835]
[1738158458902,3.22334,3102.4,3102.2,0.03568835]
[1738158459107,0.02401924,3102.3,3101.7,3.2315]
[1738158459316,0.02401924,3102.3,3101.6,3.785]
[1738158459317,4.06316924,3102.3,3101.8,0.03606081]
[1738158459522,4.03915,3102.3,3101.6,6.22409]
[1738158459747,0.8157,3102.3,3101.7,3.29874093]
[1738158459954,0.8157,3102.3,3101.8,3.22383]
[1738158460260,0.8157,3102.3,3101.8,3.25875967]
[1738158460649,0.8157,3102.3,3101.9,3.22381]
[1738158460946,0.02401924,3102.2,3102.0,0.03482819]
[1738158461155,3.24754924,3102.2,3101.7,3.23144]
[1738158461306,3.22366,3102.1,3101.6,3.0]
[1738158461653,3.22366,3102.1,3101.6,6.22413]
[1738158462064,3.24775924,3102.0,3101.4,0.0075]
[1738158462268,3.22384,3101.9,3101.4,3.0075]
[1738158462416,3.22384,3101.9,3101.4,0.5575]
[1738158462616,3.24785924,3101.9,3101.4,3.78183]
[1738158462851,0.7874,3101.8,3101.3,3.0]
[1738158463016,3.22406,3101.7,3101.0,3.22469]
[1738158463218,3.22415,3101.6,3101.0,3.22469]
[1738158463412,0.02401924,3101.5,3101.0,3.22469]
[1738158463617,0.02401924,3101.5,3101.1,0.0075]
[1738158463971,0.02401924,3101.5,3101.1,0.5575]
[1738158464274,0.02401924,3101.5,3100.6,2.91518415]
[1738158464275,3.22444,3101.4,3100.9,3.22485]
[1738158464612,3.22425,3101.5,3101.0,3.22476]
[1738158465244,0.7922,3101.4,3100.8,3.22489]
[1738158465432,3.22451,3101.3,3100.8,3.22489]
[1738158465834,3.2248,3101.0,3100.6,3.0]
[1738158466170,6.47302924,3101.3,3100.6,6.22512]
[1738158466375,3.22447,3101.3,3100.7,3.22506]
[1738158466932,0.32654439,3101.2,3100.7,3.22506]
[1738158467262,6.47301924,3101.3,3100.7,3.22506]
[1738158467263,0.7947,3101.1,3100.7,3.22506]
[1738158467624,0.7947,3101.1,3100.8,3.22495]
[1738158468664,0.7947,3101.1,3100.7,3.225]
[1738158469150,4.04345924,3101.1,3100.6,3.0]
[1738158469355,3.22495,3100.9,3100.3,3.22541]
[1738158469524,3.24896924,3100.9,3100.2,3.22559]
[1738158469719,3.22477,3101.0,3100.4,3.22538]
[1738158470073,0.7947,3101.1,3100.6,3.2251]
[1738158470718,0.7947,3101.1,3100.7,0.03603126]
[1738158471169,4.01944,3101.1,3100.5,6.22519]
[1738158471368,4.01944,3101.1,3100.8,0.03598048]
[1738158471672,4.01944,3101.1,3100.5,6.22519]
[1738158471824,4.01944,3101.1,3100.9,0.03592971]
[1738158472175,3.22478,3101.0,3100.5,6.22528]
[1738158472365,0.02401924,3100.9,3100.5,3.0]
[1738158472521,3.24888924,3100.9,3100.3,3.0]
[1738158472874,3.24888924,3100.9,3100.5,3.0]
[1738158472875,3.22488,3100.9,3100.5,3.0]
[1738158473351,4.01941,3101.1,3100.5,6.22527]
[1738158473531,0.02401924,3101.0,3100.5,6.22521]
[1738158473713,0.66379311,3101.0,3100.6,3.22518]
[1738158474039,0.63977387,3101.0,3100.6,3.22518]
[1738158474225,0.7947,3101.1,3100.5,6.22521]
[1738158474541,0.7947,3101.1,3100.9,3.22485]
[1738158475540,0.7947,3101.1,3100.7,3.22499]
[1738158475694,0.7947,3101.1,3100.8,3.22496]
[1738158475894,0.81871924,3101.1,3100.8,3.22496]
[1738158476528,0.81871924,3101.1,3100.6,3.77515]
[1738158476995,3.22488,3100.9,3100.4,6.22533]
[1738158477742,0.02401924,3101.0,3100.4,6.22529]
[1738158478048,3.24879924,3101.0,3100.4,6.22529]
[1738158478547,0.8025,3100.6,3100.2,3.22553]
[1738158478693,4.05171924,3100.6,3100.0,6.45153]
[1738158478899,4.05171924,3100.6,3100.0,3.22574]
[1738158479243,4.0277,3100.6,3100.1,3.22569]
[1738158479410,0.8025,3100.6,3100.2,3.22552]
[1738158479795,0.7588,3100.9,3100.3,0.55]
[1738158479995,0.7588,3100.9,3100.4,3.22529]
[1738158480642,0.7588,3100.9,3100.6,3.22511]
[1738158480847,0.7711,3101.1,3100.8,3.22497]
[1738158482629,0.7711,3101.1,3100.6,3.22514]
[1738158482832,0.02401924,3101.0,3100.6,3.22514]
[1738158483037,0.79511924,3101.1,3100.6,3.22512]
[1738158483201,0.7711,3101.1,3100.5,0.7949]
[1738158483406,0.7711,3101.1,3100.8,3.22489]
[1738158483801,0.7711,3101.1,3100.9,3.22485]
[1738158484248,0.7711,3101.1,3100.6,3.78257]
[1738158484453,0.79511924,3101.1,3100.7,3.22507]
[1738158484761,0.7711,3101.1,3100.6,3.78257]
[1738158484923,0.7711,3101.1,3100.8,3.22497]
[1738158485121,0.63796697,3101.2,3100.9,3.22487]
[1738158485650,3.22386,3101.9,3100.9,3.22487]
[1738158485651,0.814,3101.8,3101.5,3.22421]
[1738158485809,0.814,3101.8,3101.4,3.22434]
[1738158486005,0.814,3101.8,3101.6,0.03624723]
[1738158486240,0.814,3101.8,3101.4,3.22434]
[1738158486548,1.44049438,3102.0,3101.7,0.03619648]
[1738158486750,4.66428438,3102.0,3101.4,3.22434]
[1738158486933,0.02401924,3101.9,3101.8,0.03601113]
[1738158487253,4.66428438,3102.0,3101.8,0.03601113]
[1738158487449,1.44049438,3102.0,3101.4,3.22434]
[1738158487749,3.24788924,3101.9,3101.4,3.22434]
[1738158487954,3.22387,3101.9,3101.4,6.4486]
[1738158488307,0.02401924,3101.8,3101.4,3.22426]
[1738158488464,3.24788924,3101.9,3101.4,3.22426]
[1738158489062,0.785,3102.0,3101.8,3.22392]
[1738158489232,0.7636,3102.2,3101.8,3.22392]
[1738158490132,0.7636,3102.2,3101.6,3.22407]
[1738158490133,4.01113924,3102.2,3101.7,0.5575]
[1738158490528,4.01113924,3102.2,3101.7,3.78153]
[1738158490912,3.98712,3102.2,3101.7,3.78153]
[1738158491732,3.98712,3102.2,3101.7,7.00556]
[1738158491932,3.98712,3102.2,3101.7,3.78153]
[1738158492160,3.98712,3102.2,3101.7,7.0055]
[1738158492499,3.98712,3102.2,3101.7,3.78147]
[1738158492676,3.98712,3102.2,3101.7,0.5575]
[1738158492882,3.22365,3102.1,3101.6,3.78156]
[1738158493198,3.87073362,3102.4,3101.8,0.7693]
[1738158493548,3.87073362,3102.4,3101.9,3.22373]
[1738158494086,0.64736362,3102.4,3102.0,3.22369]
[1738158494295,0.7841,3102.5,3102.0,6.44733]
[1738158494463,0.7841,3102.5,3102.0,6.44728]
[1738158494650,0.7841,3102.5,3102.0,3.22364]
[1738158494850,0.80811924,3102.5,3101.9,0.5575]
[1738158495054,3.22332,3102.4,3101.9,3.7813]
[1738158495488,3.22332,3102.4,3101.9,0.5575]
[1738158495709,0.8157,3103.1,3102.3,3.2234]
[1738158495998,0.8157,3103.1,3102.7,3.22293]
[1738158496201,0.8157,3103.1,3102.7,3.22292]
[1738158496501,3.22234,3103.4,3102.8,3.22289]
[1738158496502,3.2224,3103.3,3102.8,3.22289]
[1738158496852,3.22226,3103.5,3103.0,3.22265]
[1738158498105,0.79901924,3103.6,3102.7,3.71568415]
[1738158498400,3.22249,3103.2,3102.7,7.02346]
[1738158498550,3.22249,3103.2,3102.8,0.55]
[1738158498987,3.22222,3103.5,3102.9,3.22277]
[1738158499198,3.22182,3103.9,3103.2,3.22238]
[1738158499494,3.22182,3103.9,3103.2,0.8177]
[1738158499495,3.22202,3103.7,3103.2,0.8177]
[1738158500651,3.22202,3103.7,3103.3,0.0340394]
[1738158500881,3.22202,3103.7,3103.2,0.8177]
[1738158501062,0.8046,3103.7,3103.4,0.03398871]
[1738158501262,0.02401924,3103.6,3102.6,0.7856]
[1738158501494,4.02724,3103.1,3102.7,0.5575]
[1738158501854,0.8046,3103.1,3102.7,0.5575]
[1738158502092,3.22242,3103.3,3102.7,3.78047]
[1738158502302,3.22223,3103.5,3102.9,3.22273]
[1738158502471,3.22223,3103.5,3103.0,3.22268]
[1738158503001,3.22199,3103.7,3103.1,0.7606]
[1738158503165,3.22201,3103.7,3103.2,3.2224]
[1738158503371,3.22201,3103.7,3103.1,3.98308]
[1738158503703,3.22206,3103.6,3103.1,0.7606]
[1738158504761,3.22206,3103.6,3103.1,3.98311]
[1738158504983,3.22193,3103.8,3103.2,3.22246]
[1738158505183,3.22196,3103.7,3103.1,0.7606]
[1738158505384,3.22214,3103.6,3103.1,0.7606]
[1738158505662,3.97592,3103.9,3103.4,3.22225]
[1738158506701,3.97592,3103.9,3103.3,3.77237]
[1738158507070,3.22188,3103.8,3103.3,0.55]
[1738158507452,3.22188,3103.8,3103.3,3.77235]
[1738158507900,3.97592,3103.9,3103.3,3.77235]
[1738158508111,3.97585,3103.9,3103.4,3.22217]
[1738158508557,0.7541,3103.9,3103.5,0.55]
[1738158508758,0.63820453,3104.0,3103.6,3.22204]
[1738158508983,0.7519,3104.2,3103.6,0.7677]
[1738158509193,0.7519,3104.2,3103.8,3.2218]
[1738158509506,3.24477924,3104.9,3103.9,3.22174]
[1738158509507,4.00141,3104.5,3103.9,3.22174]
[1738158509704,0.63596561,3104.4,3103.9,3.22174]
[1738158509903,0.7802,3104.5,3104.0,3.22162]
[1738158510109,3.22105,3104.6,3104.1,3.22153]
[1738158510458,3.22093,3104.7,3104.1,3.22153]
[1738158510657,3.22093,3104.7,3104.2,0.55]
[1738158510862,3.22093,3104.7,3104.2,3.77141]
[1738158511204,0.66085487,3104.5,3104.3,3.22133]
[1738158511675,0.66085487,3104.5,3104.2,0.55]
[1738158512998,0.66085487,3104.5,3104.4,3.22123]
[1738158513388,4.05367,3105.1,3104.7,3.22083]
[1738158513389,0.8331,3105.1,3104.7,3.22083]
[1738158513591,3.22031,3105.3,3104.7,0.55]
[1738158513762,0.65588991,3104.8,3104.7,0.5575]
[1738158514280,3.22099,3104.7,3104.2,3.22143]
[1738158514481,3.22099,3104.7,3104.3,3.0]
[1738158514699,3.22099,3104.7,3104.4,0.5575]
[1738158515432,3.22105,3104.6,3104.2,3.0]
[1738158515725,3.22099,3104.7,3104.5,0.03214172]
[1738158515924,3.22099,3104.7,3104.2,6.22143]
[1738158516132,3.22099,3104.7,3104.6,0.03209107]
[1738158516295,3.22126,3104.4,3103.8,4.03966]
[1738158516627,3.22144,3104.2,3103.8,0.8179]
[1738158516928,0.8323,3104.3,3103.8,7.03975]
[1738158517082,3.22107,3104.6,3103.9,0.5575]
[1738158517287,4.66554991,3104.8,3104.2,3.2214]
[1738158517490,4.66554991,3104.8,3104.3,3.22128]
[1738158518111,4.66554991,3104.8,3104.1,0.5575]
[1738158518380,3.221,3104.7,3104.1,3.77897]
[1738158518528,3.22109,3104.6,3104.1,0.0075]
[1738158518833,3.22128,3104.4,3104.0,0.55]
[1738158520217,3.22128,3104.4,3103.9,3.22174]
[1738158520218,3.22128,3104.4,3103.9,0.5575]
[1738158520713,3.22128,3104.4,3103.9,3.5575]
[1738158521043,3.22128,3104.4,3103.9,6.77919]
[1738158521335,3.22114,3104.5,3104.0,3.22163]
[1738158522503,3.22123,3104.4,3103.9,3.5575]
[1738158522703,3.22123,3104.4,3103.9,6.77923]
[1738158523541,3.24540924,3104.3,3103.9,3.55]
[1738158523743,3.24540924,3104.3,3103.9,3.0]
[1738158524043,3.22181,3103.9,3103.3,3.9763]
[1738158524245,0.02401924,3103.8,3103.3,0.754]
[1738158524542,0.02401924,3103.8,3103.1,3.22256]
[1738158524543,3.222,3103.7,3103.2,0.0075]
[1738158524742,3.222,3103.7,3103.3,3.55]
[1738158524946,3.22178,3103.9,3103.4,3.22226]
[1738158525150,6.44363,3103.9,3103.4,3.22226]
[1738158525446,3.22187,3103.8,3103.4,0.55]
[1738158525907,0.83071924,3103.7,3102.9,3.97672]
[1738158526105,3.22231,3103.4,3102.9,0.754]
[1738158526306,3.22231,3103.4,3102.9,3.754]
[1738158526617,3.22216,3103.6,3103.0,3.22264]
[1738158526804,3.22216,3103.6,3103.1,3.77255]
[1738158529241,3.24629924,3103.4,3103.2,0.30070076]
[1738158529444,0.02401924,3103.4,3103.2,0.30070076]
[1738158529744,3.22223,3103.5,3103.2,0.30070076]
[1738158530850,3.22223,3103.5,3103.3,0.03299364]
[1738158531002,3.24628924,3103.4,3103.2,0.30070076]
[1738158531209,4.03317,3103.3,3103.2,0.30070076]
[1738158531653,4.05718924,3103.3,3103.2,0.30070076]
[1738158532812,4.03317,3103.3,3103.2,0.30070076]
[1738158533073,4.66410069,3103.3,3103.2,0.30070076]
[1738158534636,4.66410069,3103.3,3102.6,0.30070076]
[1738158534858,3.22248,3103.2,3102.6,0.30070076]
[1738158535159,3.22248,3103.2,3102.7,3.22299]
[1738158535719,1.44173069,3103.3,3102.7,3.22299]
[1738158535919,0.63093069,3103.3,3102.9,0.8169]
[1738158536229,3.85331069,3103.3,3102.9,0.8169]
[1738158537363,3.85331069,3103.3,3102.8,0.55]
[1738158537868,3.85331069,3103.3,3102.8,3.77288]
[1738158538026,0.63093069,3103.3,3102.9,3.22278]
[1738158538223,0.63093069,3103.3,3103.0,3.22268]
[1738158539759,4.04562,3103.8,3103.3,0.0075]
[1738158540067,3.22192,3103.8,3103.4,3.22227]
[1738158540272,3.22192,3103.8,3103.3,0.5575]
[1738158540582,3.22199,3103.7,3103.3,0.5575]
[1738158540908,3.22192,3103.8,3103.3,0.5575]
[1738158541034,3.22192,3103.8,3103.3,4.23627006]
[1738158542232,3.22197,3103.7,3103.3,0.5575]
[1738158542569,3.22192,3103.8,3103.3,3.77987]
[1738158543071,3.22176,3103.9,3103.4,3.22223]
[1738158544159,3.22196,3103.7,3103.3,0.5575]
[1738158544693,3.86438103,3104.0,3103.3,0.5575]
[1738158544882,3.22175,3103.9,3103.3,3.77984]
[1738158545249,3.86438103,3104.0,3103.6,0.5575]
[1738158545775,3.86438103,3104.0,3103.7,0.0330398]
[1738158546079,3.86438103,3104.0,3103.6,0.5575]
[1738158546388,3.86438103,3104.0,3103.8,0.03298912]
[1738158546589,3.99755,3103.8,3103.7,0.0330398]
[1738158546880,3.22273,3103.0,3102.7,0.7566]
[1738158547089,3.22281,3102.9,3102.3,3.22332]
[1738158547378,3.2226,3103.1,3102.4,3.22326]
[1738158547534,3.22273,3103.0,3102.5,0.7566]
[1738158547933,3.22284,3102.9,3102.5,0.7566]
[1738158548377,3.22294,3102.8,3102.5,0.7566]
[1738158548805,3.22294,3102.8,3102.6,0.3009029]
[1738158549241,3.97994,3102.9,3102.6,0.3009029]
[1738158549443,3.22299,3102.7,3102.6,0.3009029]
[1738158549936,3.24700924,3102.7,3102.6,0.3009029]
[1738158551046,3.22322,3102.5,3102.1,0.5575]
[1738158551845,3.22359,3102.2,3101.9,0.48144464]
[1738158552011,3.22372,3102.0,3101.9,0.48144464]
[1738158552552,3.24773924,3102.0,3101.9,0.48144464]
[1738158552903,3.22372,3102.0,3101.9,0.48144464]
[1738158553358,3.22372,3102.1,3101.3,0.759]
[1738158553359,3.22407,3101.7,3101.5,0.48144464]
[1738158553644,6.4482,3101.7,3101.5,0.48144464]
[1738158553803,6.4482,3101.7,3101.6,0.03320475]
[1738158554007,7.2286,3101.7,3101.6,0.03320475]
[1738158555011,3.22445,3101.3,3101.2,0.30103193]
[1738158555618,4.02015,3101.3,3101.2,0.30103193]
[1738158555816,4.02015,3101.3,3101.2,0.33443971]
[1738158556051,4.02015,3101.3,3101.2,0.30103193]
[1738158557108,0.7957,3101.3,3100.4,0.7895]
[1738158557307,0.7957,3101.3,3100.5,0.5837632]
[1738158557308,3.22492,3100.9,3100.5,0.5837632]
[1738158558752,0.02401924,3101.0,3100.5,0.5837632]
[1738158558950,0.02401924,3101.0,3100.5,0.0337632]
[1738158559362,0.02401924,3101.0,3100.2,0.55]
[1738158559513,3.22494,3100.9,3100.6,0.03483755]
[1738158559855,3.22501,3100.8,3100.2,3.80775265]
[1738158560055,3.22501,3100.8,3100.7,0.03478677]
[1738158560561,3.22501,3100.8,3100.2,3.80775265]
[1738158560710,3.22501,3100.8,3100.7,0.03478677]
[1738158560910,3.22501,3100.8,3100.2,3.80775265]
[1738158561136,3.22501,3100.8,3100.4,0.55]
[1738158561325,3.22479,3101.0,3100.4,0.55]
[1738158561551,3.22479,3101.0,3100.5,0.03488833]
[1738158562606,6.44965,3101.0,3100.5,0.03488833]
[1738158562811,3.24890924,3100.9,3100.5,0.03488833]
[1738158563031,3.22489,3100.9,3100.5,0.03488833]
[1738158563760,0.6398384,3101.3,3100.7,3.22501]
[1738158563961,0.6398384,3101.3,3100.8,0.55]
[1738158564134,0.6398384,3101.3,3100.8,0.58473599]
[1738158564334,3.22457,3101.2,3100.8,0.58473599]
[1738158564536,3.8643584,3101.3,3100.8,0.58473599]
[1738158564537,3.22466,3101.1,3100.8,0.58473599]
[1738158566014,3.22487,3100.9,3100.8,0.03473599]
[1738158566260,3.22487,3100.9,3100.3,0.7908]
[1738158566261,3.2251,3100.7,3100.3,0.7908]
[1738158566568,3.2251,3100.7,3100.4,0.03368745]
[1738158566914,3.2251,3100.7,3100.5,0.55]
[1738158567119,3.2251,3100.7,3100.6,0.03358588]
[1738158567350,3.2251,3100.7,3100.6,0.58358588]
[1738158567750,3.55164439,3100.7,3100.6,0.58358588]
[1738158567921,3.2251,3100.7,3100.6,0.03358588]
[1738158568265,3.2251,3100.7,3099.6,3.22613]
[1738158568266,6.4515,3100.1,3099.7,0.8236]
[1738158568471,3.22572,3100.1,3099.7,0.8236]
[1738158568759,3.22591,3099.9,3099.8,0.03411681]
[1738158569057,3.22591,3099.9,3099.4,3.98808]
[1738158569263,3.22591,3099.9,3099.5,0.0075]
[1738158569418,3.22572,3100.1,3099.5,3.26806925]
[1738158569962,3.22572,3100.1,3099.6,0.55]
[1738158570425,0.02401924,3100.0,3099.7,0.03416762]
[1738158570625,3.24988924,3100.0,3099.7,0.03416762]
[1738158570935,3.22591,3099.9,3099.8,0.03411681]
[1738158571171,3.22591,3099.9,3099.4,3.7617]
[1738158571375,3.22591,3099.9,3099.8,0.03411681]
[1738158571574,3.2258,3100.0,3099.4,3.98811]
[1738158571780,3.2258,3100.0,3099.8,0.03411681]
[1738158572009,3.2258,3100.0,3099.4,3.98806]
[1738158572151,3.22593,3099.9,3099.5,0.55]
[1738158572351,3.22582,3100.0,3099.5,0.55]
[1738158572560,3.22594,3099.9,3099.5,0.55]
[1738158572766,3.22602,3099.8,3099.5,0.55]
[1738158573148,3.25003924,3099.8,3099.5,0.55]
[1738158573350,3.22602,3099.8,3099.5,0.55]
[1738158574451,3.25003924,3099.8,3099.5,0.55]
[1738158574683,0.02401924,3099.8,3099.5,0.55]
[1738158575472,3.22582,3100.0,3099.5,3.77627]
[1738158575893,3.22582,3100.0,3099.6,0.03552863]
[1738158576081,3.22593,3099.9,3099.6,0.03552863]
[1738158576283,3.24994924,3099.9,3099.6,0.03552863]
[1738158576785,3.22611,3099.7,3099.6,0.03552863]
[1738158577103,3.25012924,3099.7,3099.6,0.03552863]
[1738158577304,3.25012924,3099.7,3098.9,0.7838]
[1738158577305,3.2264,3099.5,3098.9,0.7838]
[1738158577597,6.45279,3099.5,3098.9,4.01072]
[1738158577782,3.22639,3099.5,3099.0,0.55]
[1738158577988,3.22644,3099.4,3099.0,0.55]
[1738158578154,3.22618,3099.7,3099.0,0.58226725]
[1738158578358,3.22628,3099.6,3099.0,3.77681]